Workbook

Sheet Sheet6
B2: Old | C2: Old | D2: Old | E2: Column | F2: Column | G2: Column | H2: Column | I2: Column | J2: Column | K2: Column
B3: Sum / Age | C3: 20 | D3: 30 | E3: 35 | F3: 40 | G3: 45 | H3: 50 | I3: 55 | J3: 60 | K3: 65
B4: 0 | C4: 0 | D4: 0 | E4: 0 | F4: 0 | G4: 0 | H4: 0 | I4: 0 | J4: 0 | K4: 0
A5: 200 | B5: 200000 | C5: 1860 | D5: 2530 | E5: 3010 | F5: 3690 | G5: 4790 | H5: 5850 | I5: 8170 | J5: 10000 | K5: 16860
A6: 300 | B6: 300000 | C6: 2780 | D6: 3670 | E6: 4140 | F6: 5050 | G6: 6560 | H6: 8010 | I6: 11640 | J6: 14220 | K6: 24040
A7: 500 | B7: 500000 | C7: 4270 | D7: 5800 | E7: 6530 | F7: 7990 | G7: 9280 | H7: 11340 | I7: 17060 | J7: 20860 | K7: 35420
A8: 800 | B8: 800000 | C8: 5680 | D8: 7710 | E8: 8690 | F8: 10630 | G8: 12350 | H8: 15080 | I8: 22690 | J8: 28180 | K8: 47110
B9: 0 | C9: 20 | D9: 30 | E9: 35 | F9: 40 | G9: 45 | H9: 50 | I9: 55 | J9: 60 | K9: 65
B10: 0 | C10: 0 | D10: 0 | E10: 0 | F10: 0 | G10: 0 | H10: 0 | I10: 0 | J10: 0 | K10: 0
A11: 2 | B11: 200000 | C11: 250 | D11: 360 | E11: 510 | F11: 620 | G11: 1100 | H11: 1340 | I11: 2840 | J11: 3470 | K11: 10960
A12: 3 | B12: 300000 | C12: 370 | D12: 520 | E12: 680 | F12: 840 | G12: 1510 | H12: 1850 | I12: 4030 | J12: 4930 | K12: 15610
A13: 5 | B13: 500000 | C13: 570 | D13: 830 | E13: 1090 | F13: 1330 | G13: 2130 | H13: 2610 | I13: 5910 | J13: 7230 | K13: 23010
A14: 8 | B14: 800000 | C14: 760 | D14: 1100 | E14: 1450 | F14: 1770 | G14: 2840 | H14: 2470 | I14: 7850 | J14: 9610 | K14: 30600
B16: Sum Assu. | D16: =MATCH(D18,$B$4:$B$8,1) -> 3 | E16: =MATCH(E18,$B$10:$B$14,1) -> 3 | F16: =MATCH(F18,$B$10:$B$14,1) -> 3 | G16: =MATCH(G18,$B$10:$B$15,1) -> 3 | H16: =MATCH(H18,$B$10:$B$14,1) -> 1
B17: Age | D17: =MATCH(D19,$C$3:$K$3,0) -> 5 | E17: =MATCH(E19,$C$9:$K$9,0) -> 5 | F17: =MATCH(F19,$C$9:$K$9,0) -> 1 | G17: =MATCH(G19,$C$9:$K$9,0) -> 1 | H17: =MATCH(H19,$C$9:$K$9,0) -> 1
B18: Sum Assu. | D18: =IF(F23>0,F23,0) -> 300000 | E18: =IF(F24>0,F24,0) -> 300000 | F18: =IF($F25>0,$F25,0) -> 300000 | G18: =IF($F26>0,$F26,0) -> 300000 | H18: =IF($F27>0,$F27,0) -> 0
B19: Age | D19: =IF(E23<=20,20,IF(E23<=30,30,IF(E23<=30,30,IF(E23<=35,35,IF(E23<=40,40,IF(E23<=45,45,IF(E23<=50,50,IF(E23<=55,55,IF(E23<=60,60,IF(E23<=65,65,)))))))))) -> 45 | E19: =IF(E24<=20,20,IF(E24<=30,30,IF(E24<=30,30,IF(E24<=35,35,IF(E24<=40,40,IF(E24<=45,45,IF(E24<=50,50,IF(E24<=55,55,IF(E24<=60,60,IF(E24<=65,65,)))))))))) -> 45 | F19: =IF(E25<=20,20,IF(E25<=30,30,IF(E25<=35,35,IF(E25<=40,40,IF(E25<=45,45,IF(E25<=50,50,IF(E25<=55,55,IF(E25<=60,60,IF(E25<=65,65,))))))))) -> 20 | G19: =IF(E26<=20,20,IF(E26<=30,30,IF(E26<=35,35,IF(E26<=40,40,IF(E26<=45,45,IF(E26<=50,50,IF(E26<=55,55,IF(E26<=60,60,IF(E26<=65,65,IF(E26<=70,70)))))))))) -> 20 | H19: =IF(E27<=20,20,IF(E27<=30,30,IF(E27<=35,35,IF(E27<=40,40,IF(E27<=45,45,IF(E27<=50,50,IF(E27<=55,55,IF(E27<=60,60,IF(E27<=65,65,IF(E27<=70,70)))))))))) -> 20
B20: Premium | D20: =INDEX($C$4:$K$8,D16,D17) -> 6560 | E20: =INDEX($C$10:$K$14,E16,E17) -> 1510 | F20: =INDEX($C$10:$K$14,F16,F17) -> 370 | G20: =INDEX($C$10:$K$14,G16,G17) -> 370 | H20: =INDEX($C$10:$K$14,H16,H17) -> 0
I21: Increase
C22: 78 | D22: Sum In Thousand | E22: Age | F22: Sum Assu. | H22: Premium | I22: Years after 65 | J22: 2% of Year | K22: 11
B23: Self | C23: 3 | D23: =C23*100 -> 300 | E23: 41 | F23: =D23*1000 -> 300000 | H23: =D20 -> 6560 | I23: 2 | J23: =I23*2% -> 0.04 | K23: =ROUND(H23*J23,0)+H23 -> 6822
B24: Wife | D24: =D23 -> 300 | E24: =E23 -> 41 | F24: =D24*1000 -> 300000 | H24: =IF(E24=0,0,E20) -> 1510 | I24: 0 | J24: =I24*2% -> 0 | K24: =ROUND(H24*J24,0)+H24 -> 1510
B25: Child -1 | D25: =D23 -> 300 | E25: 0 | F25: =D25*1000 -> 300000 | H25: =IF(E25=0,0,F20) -> 0 | I25: 0 | J25: 0 | K25: 0
A26: % of | B26: Child -2 or Parent | D26: =D23 -> 300 | E26: 0 | F26: =D26*1000 -> 300000 | H26: =IF(E26=0,0,G20) -> 0 | I26: 0 | J26: 0 | K26: 0
A27: Sum Ins | B27: Child -3 Disc. not allowed | D27: 0 | E27: 0 | F27: =D27*1000 -> 0 | H27: =H20 -> 0 | I27: 0 | J27: 0 | K27: 0
A28: =C39 -> 3.02
D29: =D23 -> 300 | F29: Total | H29: =SUM(H23:H28) -> 8070 | K29: =SUM(K23:K28) -> 8332
F31: Rounded Off to | H31: =H29-H30 -> 8070 | K31: =K29-K30 -> 8332
E32: Service Tax | F32: 12.36 | H32: =ROUNDUP(H31*$F$32%,0) -> 998 | K32: =ROUNDUP(K31*$F$32%,0) -> 1030
F33: Total | H33: =H31+H32 -> 9068 | K33: =K31+K32 -> 9362
B34: =[1]!num2text(H33) -> 
B36: Insurnace | C36: Premium | D36: Per day
B37: =D29*1000 -> 300000 | C37: =H33 -> 9068 | D37: =ROUND(C37/365,2) -> 24.84 | E37: Without Tax
B39: % of SI | C39: =ROUND(C37/$B$37*100,2) -> 3.02 | E39: Without Tax
B41: Tax Saved | C41: 3000 | D41: 20 % of 15000/-
B42: Net Pay | C42: =C37-C41 -> 6068 | D42: =ROUND(C42/365,2) -> 16.62 | E42: With Tax
B44: % of SI | C44: =ROUND(C42/$B$37*100,2) -> 2.02 | E44: With Tax
C51: 12350
C52: 2840
C53: 760
B57: Total | C57: =SUM(C51:C56) -> 15950
A58: Serv Tax | B58: 0.1236 | C58: =ROUNDUP(C57*B58,0) -> 1972
C60: =C57+C58 -> 17922

Sheet Sheet1
B4: 45 | C4: 78
B16: Hellow Friends
A18: 1] | B18: I am changing the value of -- Sheet6-C22 - everytime
A20: 2] | B20: The same value should be pasted in the box show B4 : g13
A22: 3] | B22: The 1 st change in c22 - pasted on b4 of sheet1
A24: 4] | B24: The 2 nd change in c22 - pasted on c4 of sheet1
B26: & so on
B28: Is it possible through excel macro
B30: If possible you give me the guidelines so that if I want to change the box or cell then
B32: I can do it my own.
B34: Thank you in advance.
B5566: 54
B54458: 45 | C54458: 78

Sheet Sheet2 (hidden)
A2: 45
A3: 545
A4: 44
A5: 45
A6: 78
... 1 more rows
